Cogmind - Beta 13 @@@ ROGUE MODE // 2024.04.14 @ 21:21:20 Player: Ladmageddon Result: Destroyed by G-34 Mercenary with Small Laser Performance ------------- Evolutions (0) 0 Regions Visited (2) 400 Robots Destroyed (20) 100 Value Destroyed (352) 352 Prototype IDs (0) 0 Alien Tech Used (0) 0 Bonus (0) 0 TOTAL SCORE: 852 Bonus ------- None Cogmind --------- Core Integrity 0/250 Matter 392/400 Energy 124/125 System Corruption 2% Temperature Cool (34) Movement Walking (120) Location -10/Mines Parts ------- > --- POWER (1) -------- Light Ion Engine > --- PROPULSION (2) --- Improved Aluminum Leg Improved Aluminum Leg > --- UTILITY (2) ------ Small Storage Unit Medium Matter Pod > --- WEAPON (2) ------- Heavy EM Pulse Gun Light Assault Rifle > --- INVENTORY (8) ---- Ion Engine Ion Engine Experimental Sensor Array Signal Interpreter EM Pulse Gun Heavy EM Pulse Gun Medium Laser Light Assault Rifle Peak State ------------ > --- POWER ------------ Light Ion Engine > --- PROPULSION ------- Improved Aluminum Leg Improved Aluminum Leg > --- UTILITY ---------- Small Storage Unit Medium Matter Pod > --- WEAPON ----------- Heavy EM Pulse Gun Light Assault Rifle > --- INVENTORY -------- Ion Engine Ion Engine Experimental Sensor Array Signal Interpreter EM Pulse Gun Heavy EM Pulse Gun Medium Laser Light Assault Rifle [Rating: 11] Favorites ----------- Power Ion Engine Engine Ion Engine Propulsion Light Treads Treads Light Treads Leg Improved Aluminum Leg Utility Small Storage Unit Device Heat Sink Storage Small Storage Unit Weapon Assault Rifle Energy Gun Heavy EM Pulse Gun Ballistic Gun Assault Rifle Build | -11 -10 -10 ------- Run | Yrd Mat Min Slots Evolved . | . . . Power . | . . . Propulsion . | . . . Utility . | . . . Weapon . | . . . Parts Attached 18 | 6 7 5 Power 2 | 1 . 1 Engine 2 | 1 . 1 Core . | . . . Reactor . | . . . Propulsion 4 | 2 2 . Treads 2 | 2 . . Leg 2 | . 2 . Wheel . | . . . Hover . | . . . Flight . | . . . Utility 4 | 1 3 . Device 1 | . 1 . Storage 3 | 1 2 . Processor . | . . . Hackware . | . . . Protection . | . . . Artifact . | . . . Weapon 8 | 2 2 4 Energy Gun 3 | 1 1 1 Energy Cannon . | . . . Ballistic Gun 5 | 1 1 3 Ballistic Cannon . | . . . Launcher . | . . . Special Weapon . | . . . Impact Weapon . | . . . Slashing Weapon . | . . . Piercing Weapon . | . . . Special Melee Weapon . | . . . Unidentified Prototypes . | . . . Parts Lost 3 | . 3 . Power . | . . . Propulsion 1 | . 1 . Utility 1 | . 1 . Weapon 1 | . 1 . Highest Loss Streak 2 | . 2 . To Critical Strikes . | . . . Average Slot Usage (%) 93 | . 89 100 Engine 14 | . 14 14 Treads 12 | . 20 . Leg 14 | . 6 28 Device 1 | . 2 . Storage 20 | . 16 28 Energy Gun 10 | . 8 14 Ballistic Gun 16 | . 18 14 Naked Turns . | . . . Heaviest Build 18 | 14 18 16 Greatest Support 40 | 40 40 26 Greatest Overweight (x) . | . . . Average Overweight (x) . | . . . Largest Inventory Capacity 8 | 8 8 8 Average Capacity 7 | 7 8 8 Most Carried 8 | 5 7 8 Average Carried 5 | 2 4 7 Final Capacity 8 | 8 8 8 Final Carried 8 | 2 7 8 Class Distribution -------------------- 100% | Mutant Dominant Class ---------------- Mutant | -10/Materials Mutant | -10/Mines Resources | -11 -10 -10 ----------- Run | Yrd Mat Min Matter Collected 565 | 136 224 205 Remotely . | . . . Salvage Created 472 | . 283 189 Parts 41 | . 23 18 Haulers Intercepted . | . . . Recyclers Shooed . | . . . Parts Field Recycled . | . . . Retrieved Matter . | . . . Parts Self-Destructed . | . . . Prevented . | . . . Kills | -11 -10 -10 ------- Run | Yrd Mat Min Combat Hostiles Destroyed 18 | . 10 8 Guns 14 | . 6 8 AOE 4 | . 4 . Classes Destroyed 3 | . 3 . Worker 2 | . 2 . Swarmer 12 | . 6 6 Grunt 6 | . 4 2 Best Kill Streak 7 | . 7 3 Combat Bots Only 6 | . 6 3 Max Kills in Single Turn 4 | . 4 1 Gunslinging . | . . . Exploded 3 | . 3 . Melee . | . . . Uniques/NPCs Destroyed . | . . . Combat | -11 -10 -10 -------- Run | Yrd Mat Min Hostile Shots Fired 102 | . 55 47 Missed 30 | . 16 14 Damage Taken 992 | . 696 296 Core 251 | . 188 63 Absorbed by Shields . | . . . Core Remaining (%) 100 | 100 . . Volleys Fired 41 | . 21 20 Largest 2 | . 2 2 Hottest 65 | . 60 65 Shots Fired 79 | . 39 40 Gun 79 | . 39 40 Cannon . | . . . Launcher . | . . . Special . | . . . Kinetic 48 | . 28 20 Thermal . | . . . Explosive . | . . . Electromagnetic 31 | . 11 20 Robot Hit Streak 6 | . 6 3 Robot Miss Streak 5 | . 3 5 Penetration Max . | . . . Secondary Targets 2 | . 2 . Max Gunslinging Chain 1 | . 1 . Shots Hit Robots 41 | . 24 17 Core Hits 25 | . 14 11 Critical Kills . | . . . Critical Parts Destroyed . | . . . Critical Strikes . | . . . Melee Attacks . | . . . Impact . | . . . Slashing . | . . . Piercing . | . . . Sneak Attacks . | . . . Combat Hostiles . | . . . Follow-up Attacks . | . . . Damage Inflicted 756 | . 550 206 Guns 531 | . 329 202 Cannons . | . . . Explosions 217 | . 217 . Melee . | . . . Ramming 8 | . 4 4 Kinetic 319 | . 218 101 Thermal 217 | . 217 . Explosive . | . . . Electromagnetic 212 | . 111 101 Impact . | . . . Slashing . | . . . Piercing . | . . . Highest Corruption 2 | . 2 2 Average Corruption 2 | . 2 2 Corruption Purged . | . . . Corruption Blocked . | . . . Effects 7 | . 3 4 Message Errors 3 | . 2 1 Matter Fused 2 | . . 2 Heat Flow Errors 1 | . . 1 Parts Rejected 1 | . 1 . Overload Shots . | . . . Overflow Damage 16 | . 16 . Projectiles . | . . . Explosions 16 | . 16 . Melee . | . . . Knockbacks . | . . . Impact . | . . . Kinetic . | . . . Secondary . | . . . Self-Inflicted Damage 15 | . 15 . Shots 1 | . 1 . Rammed 1 | . 1 . Targets Rammed 3 | . 2 1 Kicked 2 | . 1 1 Crushed . | . . . Highest Temperature 83 | . 39 83 Average Temperature 27 | . 17 31 Received Heat Transfer 174 | . 138 36 Siege Activations . | . . . Robots Corrupted . | . . . Combat Hostiles . | . . . Parts Fried . | . . . Impact Corruptions . | . . . Robots Melted . | . . . Combat Hostiles . | . . . Parts Melted . | . . . Heat Transferred 250 | . 250 . Parts Sabotaged . | . . . Parts Stolen . | . . . Parts Stripped . | . . . Power Chain Reactions 2 | . 2 . Alert | -11 -10 -10 ------- Run | Yrd Mat Min Peak Influence 291 | . 222 291 Initial 86 | . . 86 Average 127 | . 113 191 Maximum Alert Level 1 | . 1 1 Low Security (%) 73 | 100 71 68 Level 1 26 | . 28 31 Level 2 . | . . . Level 3 . | . . . Level 4 . | . . . Level 5 . | . . . High Security . | . . . Max Security . | . . . Squads Dispatched 1 | . 1 . Investigation . | . . . Extermination . | . . . Reinforcement 1 | . 1 . Assault . | . . . Garrison . | . . . Intercept . | . . . Searches Triggered . | . . . Construction Impeded . | . . . Haulers Reinforced . | . . . Active Scanning Responses . | . . . Cargo Convoy Interrupts . | . . . Stealth | -11 -10 -10 --------- Run | Yrd Mat Min Distress Signals . | . . . Communications Jammed . | . . . Distress Signals . | . . . Times Spotted 21 | . 11 10 Peak Tracking Total 4 | . 4 3 Tactical Retreats . | . . . Traps | -11 -10 -10 ------- Run | Yrd Mat Min Traps Triggered . | . . . Indirectly . | . . . Trap Hack Attempts . | . . . Triggered . | . . . Disarmed . | . . . Reprogrammed . | . . . Reused . | . . . Traps Extracted . | . . . Installed . | . . . Triggered . | . . . Machines | -11 -10 -10 ---------- Run | Yrd Mat Min Machines Disabled . | . . . Max in Single Turn . | . . . Machines Repaired . | . . . Machines Dismantled . | . . . Machines Sabotaged . | . . . Overloaded Fab Kills . | . . . Hacking | -11 -10 -10 --------- Run | Yrd Mat Min Machines Accessed . | . . . Terminals . | . . . Fabricators . | . . . Repair Stations . | . . . Recycling Units . | . . . Scanalyzers . | . . . Garrison Access . | . . . Total Hacks . | . . . Successful . | . . . Failed . | . . . Catastrophic . | . . . Database Lockouts . | . . . Manual . | . . . Terminals . | . . . Fabricators . | . . . Repair Stations . | . . . Recycling Units . | . . . Scanalyzers . | . . . Garrison Access . | . . . Terminal Hacks . | . . . Fabricator Hacks . | . . . Repair Station Hacks . | . . . Recycling Unit Hacks . | . . . Scanalyzer . | . . . Garrison Access Hacks . | . . . Unauthorized Hacks . | . . . Terminals . | . . . Fabricators . | . . . Repair Stations . | . . . Recycling Units . | . . . Scanalyzers . | . . . Garrison Access . | . . . Data Cores Recovered . | . . . Used . | . . . Hacking Detections . | . . . Full Trace Events . | . . . Feedback Events . | . . . Feedback Blocked . | . . . Robot Schematics Acquired . | . . . Robots Built . | . . . Authchips . | . . . Time . | . . . Total Robot Build Rating . | . . . Part Schematics Acquired . | . . . Parts Built . | . . . Authchips . | . . . Time . | . . . Total Part Build Rating . | . . . Parts Repaired . | . . . Time . | . . . Parts Recycled . | . . . Recycled Matter . | . . . Retrieved Matter . | . . . Retrieved Components . | . . . Parts Scanalyzed . | . . . Part Schematics Acquired . | . . . Parts Damaged . | . . . Bothacking | -11 -10 -10 ------------ Run | Yrd Mat Min Used RIF Installer . | . . . Robots Hacked . | . . . Non-combat . | . . . Combat . | . . . Robot Hacks Applied . | . . . Relay Couplers Released . | . . . Fabnet Peak Effective % . | . . . Robots Rewired . | . . . Allies Hacked . | . . . Hacks Repelled . | . . . Allies | -11 -10 -10 -------- Run | Yrd Mat Min Total Allies . | . . . Largest Group . | . . . Highest-Rated Group . | . . . Highest-Rated Ally . | . . . Total Orders . | . . . Ally Attacks . | . . . Total Damage . | . . . Kills . | . . . Allies Corrupted . | . . . Allies Melted . | . . . Intel | -11 -10 -10 ------- Run | Yrd Mat Min Robot Analysis Total . | . . . Derelict Logs Recovered 3 | . . 3 Drone Launches . | . . . Drone Recoveries . | . . . Exploration | -11 -10 -10 ------------- Run | Yrd Mat Min Turns Passed 706 | 79 390 237 Spaces Moved 402 | 59 207 136 Core 26 | 26 . . Treads 173 | 33 140 . Legs 203 | . 67 136 Wheels . | . . . Hover . | . . . Flight . | . . . Fastest Speed 50 | 50 120 120 Average Speed 132 | 111 147 120 Slowest Speed 160 | 160 160 120 Overloaded Moves . | . . . Propulsion Burnouts . | . . . Robots Hopped . | . . . Cave-ins Triggered 1 | . 1 . Exploration Rate (%) 22 | 4 28 34 Regions Visited 2 Branch Regions 1 Pre-discovered Areas 2 | . . 2 Known Exits Taken . | . . . Unknown Exits Taken 2 | 1 1 . Scrap Searched 1 | . . 1 Spaces Dug . | . . . Terrain Destroyed 2 | . 2 . Melee . | . . . Projectile . | . . . AOE 2 | . 2 . Terrain Rammed . | . . . Walls Destroyed . | . . . Machines Disabled . | . . . Actions | -11 -10 -10 --------- Run | Yrd Mat Min Total 500 | 72 253 175 Wait 13 | . 7 6 Move 400 | 58 206 136 Hop . | . . . Pick Up 17 | 8 7 2 Fast Attach 5 | . 5 . Attach 8 | 6 2 . Detach 1 | . 1 . Swap 5 | . . 5 Drop 7 | . 2 5 Fire 41 | . 21 20 Melee . | . . . Ram . | . . . Kick 2 | . 1 1 Crush 1 | . 1 . Escape Stasis . | . . . Rewire . | . . . Trap . | . . . Miscellaneous . | . . . Route ------- -11/Scrapyard -10/Materials -10/Mines History --------- Turn | Location | Event 6 | -11/Scrapyard | Discovered new exit (range 15) 80 | -11/Scrapyard | Entered Materials 241 | -10/Materials | Crushed by falling debris 241 | -10/Materials | Core integrity fell below 50% 311 | -10/Materials | Build established: Mutant 424 | -10/Materials | Discovered new exit (range 15) 470 | -10/Materials | Entered Mines 477 | -10/Mines | Core integrity fell below 20% 540 | -10/Mines | Learned location of Storage (-9) 562 | -10/Mines | Learned Materials stockpile data 583 | -10/Mines | Found a damaged Exp. Sensor Array with a note attached 586 | -10/Mines | Found Prototype Device 594 | -10/Mines | Learned location of Zion (-7) 618 | -10/Mines | A weapon hastily lodged in a ceiling crevice suddenly fell to the ground 707 | -10/Mines | Destroyed by G-34 Mercenary with Small Laser Last Messages --------------- K-01 Serf collects debris. Acquired derelict log, extracted data. World map updated: -7/Zion. System corrupted: Heat flow error (+101). Kicked U-05 Engineer out of the way. K-01 Serf collects debris. A Mak. Hammer has been hastily shoved under some rubble with a note attached: "Who needs nails when you have Unaware?" S-10 Pest destroyed. QXJCM2 NM>RVXBWHFA ZXKY S-10 Pest destroyed. Acquired 15 matter. Acquired 16 matter. Acquired 11 matter. Dropped Lgt. Assault Rifle. G-47 Trooper destroyed. G-34 Mercenary destroyed. Acquired 50 matter. Acquired 49 matter. Map ----- +----------------------------------------------------+ | ????????????????????????????????????????? | | ????????????????????????? ??????????????? | | ????????????????????????? ????????????? | | ???????????????????????? ?????????? | | ??????????????????????? ?????????? | | ??????????????????????? ??????????? | | ??????????????????????? #??????????? | | ????????????# ???????? #??????????? | | ??????????## ???????? #?????? ?? | | ??????????# ????????# ##????? | | ??????????# ???????## ###??? | | ??????????? ???????# ##??? | | ???????????# ???????# #????# | | ???????????# #??????# #?????# | | ???????????# ####### #????## | | ???????????# ## #????## | | ???????????# ## #???## | | ???????????# ## ##[= #????# | | ???????????# ## ## * #????# | | ???????????# ## ##== ##?????# | | ????????????# ## = * #??????# | | ????????????## * ## ##?????# | | ?????????????##= ###### ##?????# ?? | | ??????????????## #????## #??????? ???? | | ???????????????#=#?????### #???????????# | | ???????????????#@#???????# #??????????## | | ???????????????#g#???????# ##????????## | | ???????????????#g#???????# ##???????# | | ??????????????? ???????# #???????# | | ??????????????? ??????## / ##??????# | | ??????????????? ?????## ##?????## | | ???????????????" ?????# ##?????## | | ??????????????"" #????# ######## | | ??????????????"" #????## | | ?????????????? #?????#### ######### | | ??????????????? #????????## ##???????? | | ???????????????####?????????####????????? | | ????????????????????????????????????????? | | ????????????????????????????????????????? | | ????????????????????????????????????????? | | ????????????????????????????????????????? | | ????????????????????????????????????????? | | ????????????????????????????????????????? | | ????????????????????????????????????????? | | ????????????????????????????????????????? | | ????????????????????????????????????????? | | ????????????????????????????????????????? | | ????????????????????????????????????????? | | ????????????????????????????????????????? | | ????????????????????????????????????????? | +----------------------------------------------------+ Best States ------------- Heat Dissipation 35 Energy Generation 10 Energy Capacity 250 Matter Stores 394 Matter Capacity 500 Sight Range 16 Terrain Scan Density 10 Evasion (%) 55 Recoil Reduction 2 Item Schematics ----------------- None Robot Schematics ------------------ None Fabricated ------------ Nothing Alien Tech Used ----------------- None Achievements -------------- None Challenges ------------ None Game ------ Seed TargetServoMicroactuators Manual? 0 Play Time 00:09:17 Cumulative 4.7 hours Start 2024.04.14 @ 21:13:13 End 2024.04.14 @ 21:21:20 Sessions 1 Manual Loads 0 Difficulty Rogue Special Mode None Game No. 10 Rogue 7 Adventurer 3 Explorer 0 Win Type - Total 0 Types 0/0/0/0/0/0/0/0/0 Lore% 2 Gallery% 13 Achievement% 9 Wizard Run 0 Options --------- Layout 1 ASCII 0 Keyboard 0 Movement Arrows Keybinds 0 Fullscreen 1 Font 24/Smallcaps Map View 50x35 Zoom Use 0% Tactical HUD 0 Map Filters NONE Filters NONE Steam 1 RUN: 760048cd-2f26-4e8a-851d-c746b3254a25